Cogmind - Beta 16.1 @@@ ROGUE MODE // 2026.04.08 @ 14:58:34 Player: microsand Result: Destroyed by 80-OU2(R) with Subdweller Laser Performance ------------- Evolutions (0) 0 Regions Visited (3) 600 Robots Destroyed (25) 125 Value Destroyed (448) 448 Prototype IDs (0) 0 Alien Tech Used (0) 0 Bonus (-14) -14 TOTAL SCORE: 1159 Bonus ------- Friendly Fire -14 Cogmind --------- Core Integrity 0/250 Matter 274/300 Energy 250/250 System Corruption 11% Temperature Cool (6) Movement Core (250) Ox4 Location -10/Subcaves Parts ------- > --- POWER (1) -------- Ion Engine > --- PROPULSION (2) --- (None) > --- UTILITY (2) ------ Small Storage Unit Seismic Detector > --- WEAPON (2) ------- Medium Laser Small Laser > --- INVENTORY (8) ---- Ion Engine Aluminum Leg Makeshift Light Armor Plating Makeshift Light Armor Plating EM Pulse Gun Peak State ------------ > --- POWER ------------ Ion Engine > --- PROPULSION ------- Hover Unit Hover Unit > --- UTILITY ---------- Small Storage Unit Seismic Detector > --- WEAPON ----------- Grenade Launcher Rocket Launcher > --- INVENTORY -------- Ion Engine Ion Engine Aluminum Leg Makeshift Light Armor Plating EM Pulse Gun Medium Laser Small Laser [Rating: 9] Favorites ----------- Power Ion Engine Engine Ion Engine Propulsion Aluminum Leg Leg Aluminum Leg Hover Unit Hover Unit Utility Seismic Detector Device Seismic Detector Storage Small Storage Unit Weapon Medium Laser Energy Gun Medium Laser Launcher Grenade Launcher Build | -11 -10 -10 -10 ------- Run | Yrd Mat Min Sub Slots Evolved . | . . . . Power . | . . . . Propulsion . | . . . . Utility . | . . . . Weapon . | . . . . Parts Attached 14 | 6 1 5 2 Power 3 | 1 . 2 . Engine 3 | 1 . 2 . Core . | . . . . Reactor . | . . . . Propulsion 5 | 2 . 3 . Treads . | . . . . Leg 3 | 2 . 1 . Wheel . | . . . . Hover 2 | . . 2 . Flight . | . . . . Utility 2 | 1 1 . . Device 1 | 1 . . . Storage 1 | . 1 . . Processor . | . . . . Hackware . | . . . . Protection . | . . . . Artifact . | . . . . Weapon 4 | 2 . . 2 Energy Gun 2 | 2 . . . Energy Cannon . | . . . . Ballistic Gun . | . . . . Ballistic Cannon . | . . . . Launcher 2 | . . . 2 Special Weapon . | . . . . Impact Weapon . | . . . . Slashing Weapon . | . . . . Piercing Weapon . | . . . . Special Melee Weapon . | . . . . Unidentified Prototypes . | . . . . Parts Lost 6 | . . 1 5 Power 1 | . . . 1 Propulsion 3 | . . 1 2 Utility . | . . . . Weapon 2 | . . . 2 Highest Loss Streak 5 | . . 1 5 To Critical Strikes . | . . . . Average Backups 4 | 1 2 4 6 Power 1 | . . 1 1 Propulsion . | . . 1 1 Utility . | . . . 1 Weapon 2 | . 1 2 2 Tool/Special . | . . . . Unused Backups 3 | . . . 3 Power . | . . . . Propulsion . | . . . . Utility 2 | . . . 2 Weapon 1 | . . . 1 Tool/Special . | . . . . Average Slot Usage (%) 84 | . 91 86 74 Engine 13 | . 14 14 13 Leg 11 | . 28 11 . Hover 7 | . . 7 11 Device 14 | . 14 14 14 Storage 12 | . 5 14 14 Energy Gun 22 | . 28 24 15 Launcher 1 | . . . 5 Peak Build Rating 9 | 6 7 7 9 Average Rating 6 | 4 6 6 6 On Entrance 4 | . 6 7 5 Avg Prop Armor Cover (%) . | . . . . Naked Turns . | . . . . Heaviest Build 18 | 9 14 14 18 Greatest Support 20 | 20 20 20 12 Greatest Overweight (x) 4 | . . 1 4 Average Overweight (x) . | . . . 1 Largest Inventory Capacity 8 | 5 8 8 8 Average Capacity 7 | 5 6 8 8 Most Carried 8 | 3 4 8 8 Average Carried 4 | 1 2 4 6 Final Capacity 8 | 5 8 8 8 Final Carried 8 | 1 4 8 5 Class Distribution -------------------- 100% | Mutant Dominant Class ---------------- Mutant | -10/Materials Mutant | -10/Mines Mutant | -10/Subcaves Resources | -11 -10 -10 -10 ----------- Run | Yrd Mat Min Sub Matter Collected 507 | 260 10 59 178 Remotely . | . . . . Salvage Created 638 | 130 240 171 97 Parts 49 | 7 13 19 10 Haulers Intercepted . | . . . . Recyclers Shooed 1 | 1 . . . Parts Field Recycled . | . . . . Retrieved Matter . | . . . . Parts Self-Destructed 10 | . . . 10 Prevented . | . . . . Parts Restored . | . . . . Kills | -11 -10 -10 -10 ------- Run | Yrd Mat Min Sub Combat Hostiles Destroyed 14 | . 4 6 4 Guns 11 | . 4 6 1 AOE 3 | . . . 3 Classes Destroyed 8 | 2 3 2 1 Worker 2 | . . 2 . Builder 2 | . 1 1 . Tunneler 4 | 3 . 1 . Recycler 1 | 1 . . . Watcher 2 | . 2 . . Swarmer 6 | . . 6 . Grunt 6 | . 4 . 2 Subdweller 2 | . . . 2 Best Kill Streak 3 | 3 2 3 2 Combat Bots Only 3 | . 2 3 2 Max Kills in Single Turn 2 | 1 1 2 1 Gunslinging 1 | . . 1 . Exploded 1 | . . . 1 Melee . | . . . . Uniques/NPCs Destroyed . | . . . . Combat | -11 -10 -10 -10 -------- Run | Yrd Mat Min Sub Hostile Shots Fired 78 | . 30 36 12 Missed 23 | . 9 8 6 Hits 55 | . 21 28 6 Projectile 55 | . 21 28 6 AOE 1 | . . . 1 Damage Taken 1091 | . 243 213 635 Core 259 | . 32 60 167 Absorbed by Shields . | . . . . Core Remaining (%) 100 | 100 . . . Volleys Fired 72 | 10 27 23 12 Largest 2 | 2 2 2 2 Hottest 90 | 90 90 90 90 Shots Fired 138 | 20 54 47 17 Gun 124 | 20 54 47 3 Cannon . | . . . . Launcher 14 | . . . 14 Special . | . . . . Kinetic . | . . . . Thermal 124 | 20 54 47 3 Explosive 14 | . . . 14 Electromagnetic . | . . . . Robot Hit Streak 14 | 6 14 3 6 Robot Miss Streak 7 | 3 3 7 1 Penetration Max . | . . . . Secondary Targets 2 | . 1 1 . Max Gunslinging Chain 1 | . 1 1 . Shots Hit Robots 68 | 11 32 19 6 Core Hits 39 | 5 15 11 8 Critical Kills . | . . . . Critical Parts Destroyed . | . . . . Critical Strikes 3 | . 1 1 1 Burn 3 | . 1 1 1 Melee Attacks . | . . . . Impact . | . . . . Slashing . | . . . . Piercing . | . . . . Sneak Attacks . | . . . . Combat Hostiles . | . . . . Follow-up Attacks . | . . . . Damage Inflicted 1105 | 131 404 291 279 Guns 835 | 131 400 291 13 Cannons . | . . . . Explosions 266 | . . . 266 Melee . | . . . . Ramming 4 | . 4 . . Kinetic . | . . . . Thermal 835 | 131 400 291 13 Explosive 266 | . . . 266 Electromagnetic . | . . . . Impact . | . . . . Slashing . | . . . . Piercing . | . . . . Highest Corruption 11 | . 1 1 11 Average Corruption 3 | . 1 1 6 Corruption Purged . | . . . . Corruption Blocked . | . . . . Effects 35 | . 1 9 25 Message Errors 11 | . 1 2 8 Matter Fused 7 | . . 1 6 Heat Flow Errors 5 | . . 1 4 Energy Discharges 2 | . . 1 1 Data Loss (minor) 6 | . . 2 4 Data Loss (major) 2 | . . . 2 Misfires 1 | . . 1 . Alerts 1 | . . 1 . Overload Shots . | . . . . Overflow Damage 11 | . . . 11 Projectiles . | . . . . Explosions 11 | . . . 11 Melee . | . . . . Knockbacks . | . . . . Impact . | . . . . Kinetic . | . . . . Secondary . | . . . . Self-Inflicted Damage 106 | . . . 106 Shots 4 | . . . 4 Rammed . | . . . . Targets Rammed 1 | . 1 . . Kicked 1 | . 1 . . Crushed . | . . . . Highest Temperature 348 | 135 348 221 216 Average Temperature 94 | 64 118 76 89 Received Heat Transfer 156 | . 132 . 24 Siege Activations . | . . . . Martial Activations . | . . . . Shielding Activations . | . . . . Robots Disrupted . | . . . . Combat Hostiles . | . . . . Robots Corrupted . | . . . . Combat Hostiles . | . . . . Parts Fried . | . . . . Impact Corruptions . | . . . . Robots Melted . | . . . . Combat Hostiles . | . . . . Parts Melted 5 | 1 3 1 . Heat Transferred 2429 | 371 1104 843 111 Parts Sabotaged . | . . . . Parts Stolen . | . . . . Parts Stripped . | . . . . Power Chain Reactions . | . . . . Alert | -11 -10 -10 -10 ------- Run | Yrd Mat Min Sub Maximum Alert Level . | . . . . Low Security (%) 100 | 100 100 100 . Level 1 . | . . . . Level 2 . | . . . . Level 3 . | . . . . Level 4 . | . . . . Level 5 . | . . . . High Security . | . . . . Max Security . | . . . . Peak Influence 100 | 10 42 100 . Initial . | . . . . Average 8 | 1 8 8 . Influence Increases 364 | 20 134 160 50 Destroy 0b10 Robot/C 240 | . 80 120 40 Destroy 0b10 Robot/NC 55 | 20 15 20 . Destroy Leader 54 | . 24 20 10 Lose Combat Pursuer 15 | . 15 . . Influence Decreases 364 | 20 134 160 50 Time Decay 354 | 20 134 150 50 Lost Part 10 | . . 10 . Squads Dispatched 1 | . 1 . . Investigation . | . . . . Extermination . | . . . . Reinforcement 1 | . 1 . . Assault . | . . . . Garrison . | . . . . Intercept . | . . . . Searches Triggered . | . . . . Construction Impeded . | . . . . Haulers Reinforced . | . . . . Active Scanning Responses . | . . . . Cargo Convoy Interrupts . | . . . . Stealth | -11 -10 -10 -10 --------- Run | Yrd Mat Min Sub Distress Signals 3 | . 3 . . Communications Jammed . | . . . . Distress Signals . | . . . . Times Spotted 28 | . 16 6 6 Peak Tracking Total 4 | . 4 3 2 Tactical Retreats 1 | . 1 . . Traps | -11 -10 -10 -10 ------- Run | Yrd Mat Min Sub Traps Triggered 1 | . 1 . . Indirectly . | . . . . Trap Hack Attempts . | . . . . Triggered . | . . . . Disarmed . | . . . . Reprogrammed . | . . . . Reused . | . . . . Traps Extracted . | . . . . Installed . | . . . . Triggered . | . . . . Machines | -11 -10 -10 -10 ---------- Run | Yrd Mat Min Sub Machines Disabled . | . . . . Max in Single Turn . | . . . . Machines Repaired . | . . . . Machines Dismantled . | . . . . Machines Sabotaged . | . . . . Overloaded Fab Kills . | . . . . Hacking | -11 -10 -10 -10 --------- Run | Yrd Mat Min Sub Machines Accessed 1 | . 1 . . Terminals 1 | . 1 . . Fabricators . | . . . . Repair Stations . | . . . . Recycling Units . | . . . . Scanalyzers . | . . . . Garrison Access . | . . . . Total Hacks 1 | . 1 . . Successful . | . . . . Failed 1 | . 1 . . Catastrophic 1 | . 1 . . Database Lockouts . | . . . . Manual 1 | . 1 . . Terminals 1 | . 1 . . Fabricators . | . . . . Repair Stations . | . . . . Recycling Units . | . . . . Scanalyzers . | . . . . Garrison Access . | . . . . Terminal Hacks . | . . . . Fabricator Hacks . | . . . . Repair Station Hacks . | . . . . Recycling Unit Hacks . | . . . . Scanalyzer . | . . . . Garrison Access Hacks . | . . . . Unauthorized Hacks . | . . . . Terminals . | . . . . Fabricators . | . . . . Repair Stations . | . . . . Recycling Units . | . . . . Scanalyzers . | . . . . Garrison Access . | . . . . Data Cores Recovered . | . . . . Used . | . . . . Hacking Detections 1 | . 1 . . Full Trace Events . | . . . . Feedback Events . | . . . . Feedback Blocked . | . . . . Robot Schematics Acquired . | . . . . Robots Built . | . . . . Authchips . | . . . . Time . | . . . . Total Robot Build Rating . | . . . . Part Schematics Acquired . | . . . . Parts Built . | . . . . Authchips . | . . . . Time . | . . . . Total Part Build Rating . | . . . . Part Studies Acquired . | . . . . Parts Repaired . | . . . . Time . | . . . . Parts Recycled . | . . . . Recycled Matter . | . . . . Retrieved Matter . | . . . . Retrieved Components . | . . . . Parts Scanalyzed . | . . . . Part Schematics Acquired . | . . . . Parts Damaged . | . . . . Bothacking | -11 -10 -10 -10 ------------ Run | Yrd Mat Min Sub Used RIF Installer . | . . . . Robots Hacked . | . . . . Non-combat . | . . . . Combat . | . . . . Robot Hacks Applied . | . . . . Relay Couplers Released . | . . . . Fabnet Peak Effective % . | . . . . Robots Rewired . | . . . . Allies Hacked . | . . . . Hacks Repelled . | . . . . Allies | -11 -10 -10 -10 -------- Run | Yrd Mat Min Sub Total Allies . | . . . . Largest Group . | . . . . Highest-Rated Group . | . . . . Highest-Rated Ally . | . . . . Total Orders . | . . . . Ally Attacks . | . . . . Total Damage . | . . . . Kills . | . . . . Allies Corrupted . | . . . . Allies Melted . | . . . . Intel | -11 -10 -10 -10 ------- Run | Yrd Mat Min Sub Active Infowar (turns) 3261 | 119 649 1584 909 Seismic 3261 | 119 649 1584 909 Robot Analysis Total . | . . . . Derelict Logs Recovered 2 | . . 1 1 Drone Launches . | . . . . Drone Recoveries . | . . . . Exploration | -11 -10 -10 -10 ------------- Run | Yrd Mat Min Sub Turns Passed 3317 | 175 649 1584 909 Spaces Moved 1820 | 115 425 699 581 Core 235 | 8 . . 227 Treads . | . . . . Legs 1129 | 107 425 597 . Wheels . | . . . . Hover 456 | . . 102 354 Flight . | . . . . Fastest Speed 50 | 50 120 56 56 Average Speed 149 | 115 120 171 150 Slowest Speed 250 | 120 120 190 250 Overloaded Moves . | . . . . Propulsion Burnouts . | . . . . Robots Hopped . | . . . . Potential Cave-ins 11 | . . . 11 Cave-ins Triggered 1 | . . . 1 Exploration Rate (%) 51 | 4 72 91 39 Regions Visited 3 Branch Regions 2 Pre-discovered Areas 3 | . . 1 2 Known Exits Taken . | . . . . Unknown Exits Taken 3 | 1 1 1 . Scrap Searched 4 | . . 1 3 Spaces Dug 32 | . . . 32 Terrain Destroyed 113 | . . . 113 Melee . | . . . . Projectile . | . . . . AOE 113 | . . . 113 Terrain Rammed . | . . . . Walls Destroyed . | . . . . Machines Disabled . | . . . . Actions | -11 -10 -10 -10 --------- Run | Yrd Mat Min Sub Total 2286 | 137 510 1037 602 Wait 359 | . 53 304 2 Move 1816 | 114 424 698 580 Hop . | . . . . Pick Up 17 | 7 4 4 2 Fast Attach . | . . . . Attach 14 | 6 1 2 5 Detach 2 | . . 2 . Swap 3 | . . 3 . Drop 1 | . . 1 . Fire 72 | 10 27 23 12 Melee . | . . . . Ram . | . . . . Kick 1 | . 1 . . Crush . | . . . . Escape Stasis 1 | . . . 1 Rewire . | . . . . Trap . | . . . . Miscellaneous . | . . . . Route ------- -11/Scrapyard -10/Materials (discovered 3 exits: [*Mat x2] / [*Min]) -10/Mines (discovered 4 exits: [*Mat x2] / [*Exi] / [*Sub]) -10/Subcaves (discovered 1 exit: [*Mat]) History --------- Turn | Location | Event 4 | -11/Scrapyard | Discovered new exit (range 16) 176 | -11/Scrapyard | Entered Materials 177 | -10/Materials | Met a group of wandering Federalists 310 | -10/Materials | Build established: Mutant 421 | -10/Materials | Discovered new exit (range 16) 734 | -10/Materials | Discovered new exit (range 11) 800 | -10/Materials | Discovered new exit (range 15) 825 | -10/Materials | Entered Mines 854 | -10/Mines | Met a Derelict bent on vengeance 1048 | -10/Mines | Discovered new exit (range 8) 1355 | -10/Mines | Deemed a non-threat by the Exiles lab entrance 1357 | -10/Mines | Discovered new exit (range 5) 1453 | -10/Mines | Learned location of Mines (-9) 1864 | -10/Mines | Discovered new exit (range 10) 1922 | -10/Mines | Found DCF Scrap (13 items) 1964 | -10/Mines | Received a Rocket Launcher from a helpful Derelict 2393 | -10/Mines | Discovered new exit (range 5) 2409 | -10/Mines | Entered Subcaves 2410 | -10/Subcaves | A swath of the cavern ceiling suddenly collapsed 2410 | -10/Subcaves | Approached by a straggling Scientist 2414 | -10/Subcaves | A swath of the cavern ceiling suddenly collapsed 2559 | -10/Subcaves | Learned location of Zion (-6) 2559 | -10/Subcaves | Met a Zionite searching for "candidates" 2729 | -10/Subcaves | Disturbed a concealed Subdweller 2789 | -10/Subcaves | Crushed by falling debris 2790 | -10/Subcaves | Core integrity fell below 50% 2790 | -10/Subcaves | System corruption reached 10% 2797 | -10/Subcaves | Core integrity fell below 20% 2827 | -10/Subcaves | Lost 5 parts (1p2n2w) 3145 | -10/Subcaves | Discovered new exit (range 15) 3314 | -10/Subcaves | Ambushed by Subdwellers from Twisted Machinery 3318 | -10/Subcaves | Destroyed by 80-OU2(R) with Subdweller Laser Last Messages --------------- 03077_ System corrupted: Matter fused (-5). 03092_ System corrupted: Component data lost. AV-QZM(c): "I think it's somewhere east of here" 03129_ System corrupted: Component data lost. 03145_ EXIT=FOUND 03167_ System corrupted: Matter fused (-5). AV-QZM(c): "I think it's somewhere east of here" 03184_ System corrupted: Substantial component data lost. 03202_ 6|E%/M:Z8VKQWSOJVQY:L|ZFM1PSQO&Y4EYLMM1W AV-QZM(c): "I think it's somewhere southeast of here" 03251_ System corrupted: Heat flow error (+157). 03267_ System corrupted: Energy discharge (-75). AV-QZM(c): "I think it's somewhere southeast of here" 03285_ System corrupted: Heat flow error (+256). 03309_ System corrupted: Matter fused (-6). 03314_ MI-S30(R) emerges from the Twisted Machinery. Map ----- +----------------------------------------------------+ | ????????????????????? #?????????????????????????? | | ?????????????????#### ?????????????????????????? | | ????????????????? #?????????????????????????? | | ?????????????????? #?????????????????????????? | | ?????????????????? ??????????????????????????? | | ??????????????????# ??????????????????????????? | | ??????????????????? ##?????????????????????????? | | ??????????????????? ##????????????????????????? | | ?????????#####????## #????????????????????????? | | ????????## #????# #????????????????????????? | | ???????## ##???# #?????????????????????????? | | ???????# ##?## #?????????????????????????? | | ??????## ### ##????????????????????????? | | ??????# #????????????????????????? | | ??????# #????????????????????????? | | ??????# #????????????????????????? | | ?????## ## ### ##????????????????????????? | | ###### ### ##?## ##????????????????????????? | | """"# ## ###??## #????????????????????????? | | # ### #??## #????????????????????????? | | % # #??# #????????????????????????? | | % ##??# #????????????????????????? | | #?### ##??###?????????#?????????? | | " < #?# ##### # ### R#?????????? | | "" #### ## R"??????????? | | # ## #### @ ""?????????? | | # #" ### #?# # ##### ""?????????? | | ## ### ### ######????????????????????? | | #####?######?#######?????????????????????????? | | ##????????????????????????????????????????????? | | #????????????????????????????????????????????? | | #????????????????????????????????????????????? | | #????????????????????????????????????????????? | | #????????????????????????????????????????????? | | #????????????????????????????????????????????? | | #????????????????????????????????????????????? | | #????????????????????????????????????????##??? | | # #??????????????????????????????????????### ##? | | #####??????????????????????????????????????# #? | | #?????????????????????????????????????????## ### | | ##????????????????????????????????????????# | | ##????????????????????????????????????????# # | | #???????????????????????###??????????????# # | | #####???????????????##### #??????????????## | | ## ####???????????## #???????????????# | | #??????????## ###?????????????# # | | ##### ###?####??## ##?????????#??## | | ##???# # ### #### ### #???????? ????# | | #????# ## ###?## #??????? ##???## | | #????# ##???# ##?????# #???### # | +----------------------------------------------------+ Best States ------------- Heat Dissipation 25 Energy Generation 10 Energy Capacity 250 Matter Stores 300 Matter Capacity 300 Sight Range 16 Terrain Scan Density 10 Evasion (%) 55 Item Schematics ----------------- None Robot Schematics ------------------ None Fabricated ------------ Nothing Repaired ---------- Nothing Studied --------- None Alien Tech Used ----------------- None Achievements -------------- None Challenges ------------ None Game ------ Seed SiegeSignalBeamcaster Manual? 0 Play Time 00:14:00 Cumulative 26.8 hours Start 2026.04.08 @ 14:47:26 End 2026.04.08 @ 14:58:34 Sessions 1 Manual Loads 0 Difficulty Rogue Special Mode None Game No. 72 Rogue 72 Adventurer 0 Explorer 0 Win Type - Total 1 Types 1/0/0/0/0/0/0/0/0/0 Lore% 37 Gallery% 29 Achievement% 23 Wizard Run 0 Options --------- Layout 1 ASCII 0 Keyboard 0 Movement Numpad Keybinds 0 Fullscreen 1 Font 24/Smallcaps Map View 50x35 Zoom Use 0% Tactical HUD 1 Map Filters NONE Filters NONE Steam 1 RUN: 83650574-f920-4046-8f4f-364f0f5d1f35